[Event "Maria Albulet Memorial 2017"]
[Site "Braila"]
[Date "2017.10.11"]
[Round "6"]
[White "Andres, Marina-Corina"]
[Black "Popa, Catalina-Elena"]
[Result "1/2-1/2"]
[ECO "B13"]
[WhiteElo "1581"]
[BlackElo "1731"]
[Annotator "NA"]
[PlyCount "146"]
[EventDate "2017.??.??"]
[EventCountry "ROU"]
[SourceTitle "playchess.com"]
[Source "ChessBase"]
[SourceQuality "1"]
[TimeControl "40/5400+30:900+30"]

1. e4 {[%emt 0:00:00]} c6 {[%emt 0:00:05]} 2. d4 {[%emt 0:00:00]} d5 {[%emt 0:00:03]} 3. exd5 {[%emt 0:00:00]} cxd5 {[%emt 0:00:03]} 4. Bd3 {[%emt 0:00:00]} Nc6 {[%emt 0:00:02]} 5. c3 {[%emt 0:00:04]} Qc7 {[%emt 0:00:04]} 6. Ne2 {[%emt 0:00:21]} Bg4 {[%emt 0:00:05]} 7. f3 {[%emt 0:00:50]} Bd7 {[%emt 0:00:05]} 8. Bf4 {[%emt 0:01:23]} e5 {[%emt 0:00:06]} 9. Bg3 {[%emt 0:05:08]} Bd6 {[%emt 0:00:17]} 10. Bc2 {[%emt 0:06:07]} Nge7 {[%emt 0:04:35]} 11. Nd2 {[%emt 0:06:35]} Nf5 {[%emt 0:09:33]} 12. Bxf5 {[%emt 0:07:57]} Bxf5 {[%emt 0:00:27]} 13. dxe5 {[%emt 0:02:45]} Bxe5 {[%emt 0:03:42]} 14. Bxe5 {[%emt 0:01:37]} Nxe5 {[%emt 0:00:07]} 15. Qa4+ {[%emt 0:09:52]} Qc6 {[%emt 0:04:06]} 16. Qxc6+ {[%emt 0:01:04]} bxc6 {[%emt 0:00:06]} 17. Nd4 {[%emt 0:10:44]} Bd7 {[%emt 0:17:17]} 18. b4 {[%emt 0:08:48]} Nd3+ {[%emt 0:04:49]} 19. Ke2 {[%emt 0:01:52]} Nf4+ {[%emt 0:00:09]} 20. Kf2 {[%emt 0:01:24]} O-O {[%emt 0:00:26]} 21. N2b3 {[%emt 0:05:30]} Nd3+ {[%emt 0:17:15]} 22. Kg3 {[%emt 0:03:11]} c5 {[%emt 0:08:50]} 23. Nxc5 {[%emt 0:03:20]} Nxc5 {[%emt 0:00:05]} 24. bxc5 {[%emt 0:00:08]} Rfc8 {[%emt 0:00:17]} 25. c6 {[%emt 0:03:20]} Bxc6 {[%emt 0:00:06]} 26. Nxc6 {[%emt 0:00:04]} Rxc6 {[%emt 0:00:04]} 27. Rhd1 {[%emt 0:01:11]} Rd8 {[%emt 0:04:24]} 28. Rac1 {[%emt 0:00:38]} Kf8 {[%emt 0:01:03]} 29. Rd4 {[%emt 0:01:41]} Ra6 {[%emt 0:03:34]} 30. Rc2 {[%emt 0:01:48]} Ke7 {[%emt 0:00:42]} 31. Rb4 {[%emt 0:03:26]} Rd7 {[%emt 0:01:19]} 32. a4 {[%emt 0:01:13]} Rc6 {[%emt 0:03:38]} 33. Rh4 {[%emt 0:02:46]} h6 {[%emt 0:01:31]} 34. Rd4 {[%emt 0:01:08]} Rc5 {[%emt 0:01:49]} 35. Rcd2 {[%emt 0:01:41]} Kd6 {[%emt 0:01:51]} 36. c4 {[%emt 0:01:01]} Kc6 {[%emt 0:00:14]} 37. cxd5+ {[%emt 0:00:38]} Rdxd5 {[%emt 0:00:14]} 38. Rxd5 {[%emt 0:01:27]} Rxd5 {[%emt 0:00:01]} 39. Re2 {[%emt 0:00:42]} Rd7 {[%emt 0:12:45]} 40. Re4 {[%emt 0:00:00]} Rb7 {[%emt 0:01:53]} 41. Rf4 {[%emt 0:02:36]} Kd5 {[%emt 0:01:11]} 42. Rg4 {[%emt 0:00:58]} g5 {[%emt 0:00:25]} 43. Re4 {[%emt 0:01:04]} f5 {[%emt 0:00:12]} 44. Re8 {[%emt 0:00:32]} f4+ {[%emt 0:00:33]} 45. Kg4 {[%emt 0:00:50]} Rb4 {[%emt 0:01:22]} 46. Kh5 {[%emt 0:01:26]} Rb6 {[%emt 0:01:31]} 47. Rh8 {[%emt 0:00:51]} Kc4 {[%emt 0:00:47]} 48. Rxh6 {[%emt 0:00:50]} Rb2 {[%emt 0:03:40]} 49. Kxg5 {[%emt 0:02:58]} Rxg2+ {[%emt 0:00:10]} 50. Kxf4 {[%emt 0:00:20]} a5 {[%emt 0:00:01]} 51. Kf5 {[%emt 0:02:37]} Rf2 {[%emt 0:00:10]} 52. Rh4+ {[%emt 0:00:32]} Kb3 {[%emt 0:00:04]} 53. Kg4 {[%emt 0:01:07]} Rg2+ {[%emt 0:00:28]} 54. Kh3 {[%emt 0:00:26]} Ra2 {[%emt 0:00:19]} 55. Rh8 {[%emt 0:00:54]} Rxa4 {[%emt 0:00:20]} 56. Ra8 {[%emt 0:00:13]} Ra1 {[%emt 0:01:13]} 57. f4 {[%emt 0:00:32]} a4 {[%emt 0:00:10]} 58. f5 {[%emt 0:00:18]} Rf1 {[%emt 0:00:07]} 59. Rb8+ {[%emt 0:01:00]} Ka2 {[%emt 0:00:08]} 60. Kg4 {[%emt 0:00:22]} a3 {[%emt 0:00:13]} 61. h4 {[%emt 0:01:08]} Ka1 {[%emt 0:01:54]} 62. Kg5 {[%emt 0:01:26]} Rg1+ {[%emt 0:00:49]} 63. Kf6 {[%emt 0:01:55]} Rh1 {[%emt 0:00:09]} 64. Kg5 {[%emt 0:00:57]} Rg1+ {[%emt 0:00:05]} 65. Kf6 {[%emt 0:00:11]} Rh1 {[%emt 0:00:05]} 66. Rb4 {[%emt 0:01:30]} a2 {[%emt 0:00:08]} 67. Kf7 {[%emt 0:01:08]} Rh2 {[%emt 0:02:02]} 68. f6 {[%emt 0:00:46]} Rf2 {[%emt 0:00:30]} 69. Rb6 {[%emt 0:00:51]} Rh2 {[%emt 0:00:14]} 70. Rb4 {[%emt 0:00:31]} Rf2 {[%emt 0:00:02]} 71. Rb6 {[%emt 0:00:06]} Rh2 {[%emt 0:00:03]} 72. Ke7 {[%emt 0:00:15]} Rxh4 {[%emt 0:00:15]} 73. f7 {[%emt 0:00:15]} Rh7 {[%emt 0:00:03]} 1/2-1/2

[Event "Maria Albulet Memorial 2017"]
[Site "Braila"]
[Date "2017.10.11"]
[Round "6"]
[White "Uzuneanu, Gabriela"]
[Black "Coman, Ana-Cristina"]
[Result "1/2-1/2"]
[ECO "C68"]
[WhiteElo "1564"]
[BlackElo "1454"]
[Annotator "NA"]
[PlyCount "118"]
[EventDate "2017.??.??"]
[EventCountry "ROU"]
[SourceTitle "playchess.com"]
[Source "ChessBase"]
[SourceQuality "1"]
[TimeControl "40/5400+30:900+30"]

1. e4 {[%emt 0:00:00]} e5 {[%emt 0:00:04]} 2. Nf3 {[%emt 0:00:00]} Nc6 {[%emt 0:00:06]} 3. Bb5 {[%emt 0:00:00]} a6 {[%emt 0:00:05]} 4. Bxc6 {[%emt 0:00:00]} dxc6 {[%emt 0:00:07]} 5. d4 {[%emt 0:00:00]} exd4 {[%emt 0:00:26]} 6. Qxd4 {[%emt 0:00:00]} Qxd4 {[%emt 0:00:13]} 7. Nxd4 {[%emt 0:00:00]} Bd7 {[%emt 0:00:55]} 8. Be3 {[%emt 0:03:19]} O-O-O {[%emt 0:02:08]} 9. Nd2 {[%emt 0:02:20]} g6 {[%emt 0:05:09]} 10. N4b3 {[%emt 0:07:56]} Bd6 {[%emt 0:15:08]} 11. Bd4 {[%emt 0:09:41]} f6 {[%emt 0:00:54]} 12. O-O-O {[%emt 0:19:09]} Re8 {[%emt 0:06:04]} 13. Nc5 {[%emt 0:04:58]} Bxc5 {[%emt 0:12:05]} 14. Bxc5 {[%emt 0:00:06]} Nh6 {[%emt 0:02:25]} 15. f3 {[%emt 0:02:29]} Re6 {[%emt 0:04:32]} 16. Rhe1 {[%emt 0:04:31]} Rhe8 {[%emt 0:01:30]} 17. Bf2 {[%emt 0:06:28]} f5 {[%emt 0:14:05]} 18. Bg3 {[%emt 0:09:08]} Nf7 {[%emt 0:07:24]} 19. Nb3 {[%emt 0:09:41]} b6 {[%emt 0:07:03]} 20. Nd4 {[%emt 0:00:26]} R6e7 {[%emt 0:00:46]} 21. exf5 {[%emt 0:03:16]} Rxe1 {[%emt 0:01:19]} 22. Rxe1 {[%emt 0:00:24]} Rxe1+ {[%emt 0:00:12]} 23. Bxe1 {[%emt 0:00:02]} gxf5 {[%emt 0:00:08]} 24. Kd2 {[%emt 0:01:52]} c5 {[%emt 0:01:49]} 25. Ne2 {[%emt 0:00:05]} Nd6 {[%emt 0:01:57]} 26. Bf2 {[%emt 0:02:47]} Kd8 {[%emt 0:04:25]} 27. Nf4 {[%emt 0:00:55]} c6 {[%emt 0:01:39]} 28. Nh5 {[%emt 0:01:19]} Be8 {[%emt 0:03:38]} 29. Nf4 {[%emt 0:03:01]} Ke7 {[%emt 0:00:59]} 30. Bh4+ {[%emt 0:00:32]} Kf7 {[%emt 0:00:13]} 31. Nh5 {[%emt 0:01:19]} Kg6 {[%emt 0:05:13]} 32. Nf4+ {[%emt 0:02:03]} Kf7 {[%emt 0:00:20]} 33. Nh5 {[%emt 0:02:04]} Kg6 {[%emt 0:01:22]} 34. Nf6 {[%emt 0:00:04]} Bf7 {[%emt 0:00:22]} 35. Nd7 {[%emt 0:00:10]} Bxa2 {[%emt 0:01:58]} 36. Nxb6 {[%emt 0:00:03]} Nc4+ {[%emt 0:00:17]} 37. Nxc4 {[%emt 0:00:08]} Bxc4 {[%emt 0:00:02]} 38. Bf2 {[%emt 0:00:19]} Bf1 {[%emt 0:00:12]} 39. g3 {[%emt 0:00:03]} c4 {[%emt 0:00:39]} 40. Ke3 {[%emt 0:00:00]} Bg2 {[%emt 0:01:04]} 41. Be1 {[%emt 0:00:43]} Kf6 {[%emt 0:04:12]} 42. Bc3+ {[%emt 0:02:35]} Ke6 {[%emt 0:01:10]} 43. g4 {[%emt 0:01:34]} fxg4 {[%emt 0:00:35]} 44. fxg4 {[%emt 0:00:03]} Kd5 {[%emt 0:01:08]} 45. Bg7 {[%emt 0:00:39]} Be4 {[%emt 0:03:28]} 46. c3 {[%emt 0:00:32]} Bd3 {[%emt 0:01:02]} 47. Kf4 {[%emt 0:00:30]} Ke6 {[%emt 0:01:28]} 48. h4 {[%emt 0:00:19]} Bc2 {[%emt 0:01:44]} 49. g5 {[%emt 0:01:10]} Kf7 {[%emt 0:02:01]} 50. Bh8 {[%emt 0:00:11]} Kg6 {[%emt 0:02:05]} 51. Bf6 {[%emt 0:00:52]} a5 {[%emt 0:01:34]} 52. Ke5 {[%emt 0:00:08]} a4 {[%emt 0:00:36]} 53. Kd4 {[%emt 0:00:14]} Bb3 {[%emt 0:00:24]} 54. Kc5 {[%emt 0:00:13]} h6 {[%emt 0:00:46]} 55. Kxc6 {[%emt 0:00:09]} hxg5 {[%emt 0:00:41]} 56. hxg5 {[%emt 0:00:09]} Bc2 {[%emt 0:00:39]} 57. Kd6 {[%emt 0:01:51]} Bb3 {[%emt 0:00:19]} 58. Ke5 {[%emt 0:00:09]} Bc2 {[%emt 0:00:24]} 59. Kf4 {[%emt 0:00:05]} Bb3 {[%emt 0:00:00]} 1/2-1/2

[Event "Maria Albulet Memorial 2017"]
[Site "Braila"]
[Date "2017.10.11"]
[Round "6"]
[White "Vorniceanu, Alina"]
[Black "Djukic, Sandra"]
[Result "0-1"]
[ECO "B24"]
[WhiteElo "1498"]
[BlackElo "2084"]
[Annotator "NA"]
[PlyCount "104"]
[EventDate "2017.??.??"]
[EventCountry "ROU"]
[SourceTitle "playchess.com"]
[Source "ChessBase"]
[SourceQuality "1"]
[TimeControl "40/5400+30:900+30"]

1. e4 {[%emt 0:00:00]} c5 {[%emt 0:00:07]} 2. Nc3 {[%emt 0:00:00]} Nc6 {[%emt 0:00:06]} 3. g3 {[%emt 0:00:00]} g6 {[%emt 0:00:09]} 4. Bg2 {[%emt 0:00:00]} Bg7 {[%emt 0:00:06]} 5. f4 {[%emt 0:00:00]} d6 {[%emt 0:00:05]} 6. Nf3 {[%emt 0:00:01]} b6 {[%emt 0:00:13]} 7. d3 {[%emt 0:00:04]} Bb7 {[%emt 0:00:04]} 8. O-O {[%emt 0:00:07]} Qd7 {[%emt 0:01:19]} 9. Rb1 {[%emt 0:00:49]} Nh6 {[%emt 0:03:08]} 10. h3 {[%emt 0:03:34]} e6 {[%emt 0:22:37]} 11. Be3 {[%emt 0:04:48]} f5 {[%emt 0:02:58]} 12. Qd2 {[%emt 0:05:23]} O-O $15 {[%emt 0:01:53]} 13. Bf2 {[%emt 0:05:17]} Rae8 {[%emt 0:02:35]} 14. exf5 {[%emt 0:04:51]} Nxf5 {[%emt 0:01:10]} 15. Ne2 {[%emt 0:01:27]} Kh8 {[%emt 0:01:16]} 16. c3 {[%emt 0:01:19]} e5 {[%emt 0:07:16]} 17. g4 {[%emt 0:02:36]} Nh6 {[%emt 0:04:10]} 18. fxe5 {[%emt 0:01:14]} Rxf3 {[%emt 0:13:50]} 19. Bxf3 {[%emt 0:13:35]} Nxe5 {[%emt 0:00:15]} 20. Be3 {[%emt 0:11:20]} Nxf3+ {[%emt 0:01:03]} 21. Rxf3 {[%emt 0:00:09]} Bxf3 {[%emt 0:03:41]} 22. Rf1 {[%emt 0:01:25]} Bxe2 {[%emt 0:00:27]} 23. Qxe2 {[%emt 0:00:10]} Nf7 {[%emt 0:03:57]} 24. Qf2 {[%emt 0:01:52]} Ne5 {[%emt 0:01:28]} 25. d4 {[%emt 0:00:39]} Nc6 {[%emt 0:04:37]} 26. dxc5 {[%emt 0:01:37]} bxc5 {[%emt 0:00:41]} 27. Bg5 {[%emt 0:00:52]} Qe6 {[%emt 0:02:22]} 28. Qf7 {[%emt 0:03:41]} Qxf7 {[%emt 0:01:46]} 29. Rxf7 {[%emt 0:00:08]} Ne5 {[%emt 0:00:22]} 30. Rf2 {[%emt 0:00:27]} h6 {[%emt 0:00:31]} 31. Bf6 {[%emt 0:00:31]} Nd3 {[%emt 0:02:25]} 32. Bxg7+ {[%emt 0:00:34]} Kxg7 {[%emt 0:00:05]} 33. Rd2 {[%emt 0:00:18]} c4 {[%emt 0:00:28]} 34. b4 {[%emt 0:01:07]} Re1+ {[%emt 0:00:14]} 35. Kg2 {[%emt 0:00:09]} Rc1 {[%emt 0:00:25]} 36. a4 {[%emt 0:00:14]} Rxc3 {[%emt 0:00:08]} 37. b5 {[%emt 0:00:13]} Rb3 {[%emt 0:00:16]} 38. Kf1 {[%emt 0:00:52]} Ra3 {[%emt 0:00:32]} 39. Ke2 {[%emt 0:00:18]} Rxa4 {[%emt 0:00:05]} 40. Ke3 {[%emt 0:00:00]} d5 {[%emt 0:01:05]} 41. h4 {[%emt 0:01:24]} Ra5 {[%emt 0:00:49]} 42. Kd4 {[%emt 0:00:23]} Rxb5 {[%emt 0:00:48]} 43. h5 {[%emt 0:00:13]} Kf6 {[%emt 0:00:31]} 44. hxg6 {[%emt 0:00:08]} Kxg6 {[%emt 0:00:07]} 45. g5 {[%emt 0:00:25]} hxg5 {[%emt 0:00:28]} 46. Rg2 {[%emt 0:00:14]} Nf4 {[%emt 0:00:12]} 47. Ra2 {[%emt 0:00:12]} a5 {[%emt 0:00:14]} 48. Rd2 {[%emt 0:00:30]} Ne6+ {[%emt 0:00:14]} 49. Kc3 {[%emt 0:00:09]} Rb3+ {[%emt 0:00:04]} 50. Kc2 {[%emt 0:00:10]} d4 {[%emt 0:00:08]} 51. Rg2 {[%emt 0:00:15]} d3+ {[%emt 0:00:10]} 52. Kd2 {[%emt 0:00:25]} Rb2+ {[%emt 0:00:06]} 0-1

[Event "Maria Albulet Memorial 2017"]
[Site "Braila"]
[Date "2017.10.12"]
[Round "7"]
[White "Petrenko, Svetlana"]
[Black "Doluhanova, Evgeniya"]
[Result "0-1"]
[ECO "A46"]
[WhiteElo "2140"]
[BlackElo "2328"]
[Annotator "NA"]
[PlyCount "88"]
[EventDate "2017.??.??"]
[EventCountry "ROU"]
[SourceTitle "playchess.com"]
[Source "ChessBase"]
[SourceQuality "1"]
[TimeControl "40/5400+30:900+30"]

1. d4 {[%emt 0:00:00]} Nf6 {[%emt 0:00:24]} 2. Nf3 {[%emt 0:00:00]} e6 {[%emt 0:00:09]} 3. g3 {[%emt 0:00:04]} b5 {[%emt 0:01:41]} 4. Bg2 {[%emt 0:01:34]} Bb7 {[%emt 0:00:08]} 5. O-O {[%emt 0:00:38]} d5 {[%emt 0:00:20]} 6. Ne5 {[%emt 0:03:51] A46: Damenbauernspiele} (6. Bg5 Nbd7 7. e4 dxe4 8. Nfd2 h6 9. Bxf6 Nxf6 10. Qe2 a6 11. Nxe4 Bxe4 12. Bxe4 Nxe4 13. Qxe4 Qd5 {½-½ (62) Aronian,L (2784)-Dominguez Perez,L (2732) Skopje 2015}) 6... Nbd7 {[%emt 0:03:45]} 7. f4 {[%emt 0:03:26]} c5 {[%emt 0:00:55]} 8. e3 {[%emt 0:00:39]} Qb6 $146 {[%emt 0:02:16]} ({Vorgänger:} 8... Bd6 9. b3 b4 10. Bb2 Qc7 11. Nd2 O-O 12. Kh1 Rac8 13. Rc1 Qa5 {0-1 (40) Pujari,R (2114)-Harini,S (2063) Bhubaneswar 2010}) 9. c3 {[%emt 0:00:32]} Bd6 {[%emt 0:04:51]} 10. Kh1 {[%emt 0:03:41]} h5 {[%emt 0:07:24]} 11. h4 {[%emt 0:06:42]} Bxe5 {[%emt 0:15:15]} 12. fxe5 {[%emt 0:02:08]} Ng4 {[%emt 0:00:30]} 13. Bf3 {[%emt 0:07:29]} f5 {[%emt 0:01:25]} 14. b4 {[%emt 0:07:57]} cxb4 {[%emt 0:15:09]} 15. cxb4 {[%emt 0:00:02]} g5 {[%emt 0:02:05]} 16. Nc3 {[%emt 0:07:09]} Rc8 {[%emt 0:03:44]} 17. Qe1 {[%emt 0:02:41]} gxh4 {[%emt 0:09:09]} 18. gxh4 {[%emt 0:00:12]} Ndxe5 {[%emt 0:18:08]} 19. dxe5 {[%emt 0:00:32]} Nxe5 {[%emt 0:01:25]} 20. Qg3 {[%emt 0:15:06]} Nxf3 {[%emt 0:02:15]} 21. Qg6+ {[%emt 0:00:29]} Ke7 {[%emt 0:00:37]} 22. Qg7+ {[%emt 0:00:43]} Kd6 {[%emt 0:00:11]} 23. Rxf3 {[%emt 0:00:57]} Rhg8 {[%emt 0:03:37]} 24. Qf6 {[%emt 0:04:12]} Rxc3 {[%emt 0:05:21]} 25. Qxc3 {[%emt 0:00:26]} Qd8 {[%emt 0:01:18]} 26. Qe1 $2 {[%emt 0:23:41]} (26. Qd2 $17 {was the only chance.} Qf6 27. Qh2+ Kd7 28. Bb2) 26... d4 {[%emt 0:00:18]} 27. e4 {[%emt 0:00:01]} Bxe4 {[%emt 0:00:14]} 28. Bg5 {[%emt 0:00:08]} Rxg5 {[%emt 0:01:21]} 29. hxg5 {[%emt 0:00:05]} Bxf3+ {[%emt 0:00:06]} 30. Kh2 {[%emt 0:00:02]} Qxg5 {[%emt 0:00:08]} 31. Qg3+ {[%emt 0:00:06]} Qxg3+ {[%emt 0:00:07]} 32. Kxg3 {[%emt 0:00:02]} Bg4 {[%emt 0:00:16]} 33. Rc1 {[%emt 0:01:09]} d3 {[%emt 0:00:22]} 34. Rc3 {[%emt 0:00:26]} Be2 {[%emt 0:00:06]} 35. Kf2 {[%emt 0:00:08]} Kd7 {[%emt 0:01:08]} 36. Rc5 {[%emt 0:01:07]} a6 {[%emt 0:00:04]} 37. Ke3 {[%emt 0:02:19]} f4+ {[%emt 0:00:59]} 38. Kd2 {[%emt 0:01:17]} Kd6 {[%emt 0:00:08]} 39. Rc8 {[%emt 0:00:36]} e5 {[%emt 0:00:11]} 40. Rd8+ {[%emt 0:00:00]} Ke6 {[%emt 0:00:08]} 41. Rf8 {[%emt 0:09:38]} h4 {[%emt 0:02:51]} 42. Rh8 {[%emt 0:10:57]} e4 {[%emt 0:00:19]} 43. Rxh4 {[%emt 0:00:32]} e3+ {[%emt 0:00:06]} 44. Ke1 {[%emt 0:00:15]} Bf3 {[%emt 0:00:18]} 0-1

[Event "Maria Albulet Memorial 2017"]
[Site "Braila"]
[Date "2017.10.12"]
[Round "7"]
[White "Miladinovic, Lena"]
[Black "Aciu, Malina-Andreea"]
[Result "1/2-1/2"]
[ECO "E97"]
[WhiteElo "2138"]
[BlackElo "2006"]
[Annotator "NA"]
[PlyCount "67"]
[EventDate "2017.??.??"]
[EventCountry "ROU"]
[SourceTitle "playchess.com"]
[Source "ChessBase"]
[SourceQuality "1"]
[TimeControl "40/5400+30:900+30"]

1. c4 {[%emt 0:00:00]} Nf6 {[%emt 0:00:26]} 2. Nc3 {[%emt 0:00:00]} g6 {[%emt 0:00:04]} 3. e4 {[%emt 0:00:00]} d6 {[%emt 0:00:03]} 4. Nf3 {[%emt 0:00:00]} Bg7 {[%emt 0:00:04]} 5. d4 {[%emt 0:00:00]} O-O {[%emt 0:00:03]} 6. Be2 {[%emt 0:00:00]} e5 {[%emt 0:00:04]} 7. O-O {[%emt 0:00:08]} Nc6 {[%emt 0:00:02]} 8. Be3 {[%emt 0:00:24]} Ng4 {[%emt 0:00:41]} 9. Bg5 {[%emt 0:00:40]} f6 {[%emt 0:00:07]} 10. Bc1 {[%emt 0:00:04]} f5 {[%emt 0:23:41]} 11. d5 {[%emt 0:00:11]} Ne7 {[%emt 0:01:01]} 12. Ng5 {[%emt 0:00:12]} Nf6 {[%emt 0:03:21] E97: King's Indian: Classical Main Line (6...e5 7 0-0 Nc6): 8 Be3 and 8 d5 Ne7, not 9 Ne1} 13. exf5 {[%emt 0:01:01]} Nxf5 {[%emt 0:05:36]} 14. Nge4 {[%emt 0:00:26]} h6 {[%emt 0:01:45]} 15. Nxf6+ {[%emt 0:04:14]} Qxf6 {[%emt 0:01:08]} 16. Bg4 {[%emt 0:03:28]} g5 $146 {[%emt 0:08:27]} ({Predecessor:} 16... Qh4 17. g3 Qf6 18. Ne4 Qf7 {0-1 (48) Lenic,L (2538)-Sebenik,M (2465) Ljubljana 2007}) 17. a4 {[%emt 0:06:17]} a6 {[%emt 0:07:38]} 18. Ra3 {[%emt 0:02:02]} Bd7 {[%emt 0:03:56]} 19. Ne4 {[%emt 0:04:51]} Qg6 {[%emt 0:03:53]} 20. Re1 {[%emt 0:12:45]} Rad8 {[%emt 0:01:11]} 21. Bh5 {[%emt 0:06:54]} Qh7 {[%emt 0:00:49]} 22. c5 $11 {[%emt 0:05:54]} dxc5 {[%emt 0:05:52]} 23. Nxc5 {[%emt 0:11:43]} Bc8 {[%emt 0:00:06]} 24. Bg4 {[%emt 0:26:09]} b6 {[%emt 0:05:22]} 25. Ne4 {[%emt 0:02:07]} Bb7 {[%emt 0:01:26]} 26. Rh3 {[%emt 0:03:28]} Rxd5 {[%emt 0:04:25]} 27. Qb3 {[%emt 0:02:08]} Nd4 {[%emt 0:01:12]} 28. Qc4 {[%emt 0:00:46]} Qg6 {[%emt 0:01:28]} 29. Qxc7 {[%emt 0:02:41]} Ba8 {[%emt 0:00:59]} 30. Qc4 {[%emt 0:01:14]} b5 {[%emt 0:04:18]} 31. axb5 {[%emt 0:00:18]} axb5 {[%emt 0:00:02]} 32. Qa2 {[%emt 0:01:58]} Nc2 {[%emt 0:06:00]} 33. Re2 {[%emt 0:03:27]} Qa6 {[%emt 0:01:43]} 34. Ra3 {[%emt 0:00:54]} 1/2-1/2

[Event "Maria Albulet Memorial 2017"]
[Site "Braila"]
[Date "2017.10.12"]
[Round "7"]
[White "Makropoulou, Marina"]
[Black "Cosman, Andreea-Marioara"]
[Result "1/2-1/2"]
[ECO "B92"]
[WhiteElo "2136"]
[BlackElo "2125"]
[Annotator "NA"]
[PlyCount "29"]
[EventDate "2017.??.??"]
[EventCountry "ROU"]
[SourceTitle "playchess.com"]
[Source "ChessBase"]
[SourceQuality "1"]
[TimeControl "40/5400+30:900+30"]

1. e4 {[%emt 0:00:00]} c5 {[%emt 0:00:08]} 2. Nf3 {[%emt 0:00:00]} d6 {[%emt 0:00:04]} 3. d4 {[%emt 0:00:03]} cxd4 {[%emt 0:00:05]} 4. Nxd4 {[%emt 0:00:05]} Nf6 {[%emt 0:00:07]} 5. Nc3 {[%emt 0:00:12]} a6 {[%emt 0:00:05]} 6. Be2 {[%emt 0:00:25]} e5 {[%emt 0:00:08]} 7. Nf3 {[%emt 0:00:13]} h6 {[%emt 0:00:07]} 8. Nd2 {[%emt 0:00:49]} Nc6 {[%emt 0:10:33]} 9. a4 {[%emt 0:13:15]} Be6 {[%emt 0:05:47]} 10. Nc4 {[%emt 0:01:07]} d5 {[%emt 0:03:43]} 11. exd5 {[%emt 0:00:39]} Nxd5 {[%emt 0:00:22]} 12. Nxd5 {[%emt 0:00:50]} Bxd5 $11 {[%emt 0:00:25]} 13. O-O {[%emt 0:06:21]} Bc5 {[%emt 0:12:52]} 14. Be3 {[%emt 0:00:46]} Bxe3 {[%emt 0:06:03]} 15. Nxe3 {[%emt 0:00:54]} 1/2-1/2

[Event "Maria Albulet Memorial 2017"]
[Site "Braila"]
[Date "2017.10.12"]
[Round "7"]
[White "Djukic, Sandra"]
[Black "Rakhmangulova, Anastasiya"]
[Result "1/2-1/2"]
[ECO "D07"]
[WhiteElo "2084"]
[BlackElo "2242"]
[Annotator "NA"]
[PlyCount "92"]
[EventDate "2017.??.??"]
[EventCountry "ROU"]
[SourceTitle "playchess.com"]
[Source "ChessBase"]
[SourceQuality "1"]
[TimeControl "40/5400+30:900+30"]

1. d4 {[%emt 0:00:00]} d5 {[%emt 0:00:06]} 2. c4 {[%emt 0:00:00]} Nc6 {[%emt 0:00:06]} 3. Nc3 {[%emt 0:00:46]} Nf6 {[%emt 0:00:08]} 4. Nf3 {[%emt 0:00:36]} e6 {[%emt 0:00:09]} 5. g3 {[%emt 0:17:08]} Bb4 {[%emt 0:04:05]} 6. Bg2 {[%emt 0:06:05]} O-O {[%emt 0:03:30]} 7. O-O {[%emt 0:25:03]} dxc4 {[%emt 0:07:02]} 8. Qa4 {[%emt 0:00:46] LiveBook: 20 Games E20: Nimzo-Indian: 4 g3 and 4 f3} Bd7 {[%emt 0:08:52]} (8... Nd5 9. Qc2 Be7 10. Rd1 b6 11. e4 Ndb4 12. Qe2 Ba6 13. Be3 Na5 14. a3 Nd3 15. b4 Nb3 {½-½ (72) Grandelius,N (2644)-Mareco,S (2650) Linares 2017}) 9. Qc2 {[%emt 0:06:53]} a6 $146 {[%emt 0:05:58]} ({Predecessor:} 9... Rb8 10. Rd1 Be7 11. e4 b5 12. Qe2 b4 13. d5 Na5 14. dxe6 fxe6 15. Nb1 Qe8 {½-½ (35) Porat,M (2274)-Mascaro March,P (2413) Arinsal 2011}) 10. Rd1 {[%emt 0:10:34]} h6 {[%emt 0:04:05]} 11. Ne5 {[%emt 0:05:06]} Be8 {[%emt 0:10:11]} 12. Nxc6 {[%emt 0:18:13]} Bxc6 {[%emt 0:00:16]} 13. Bxc6 {[%emt 0:03:53]} bxc6 {[%emt 0:00:06]} 14. e4 {[%emt 0:00:04]} c5 {[%emt 0:04:26]} 15. Ne2 {[%emt 0:01:03]} Qe8 {[%emt 0:03:35]} 16. a3 {[%emt 0:00:27]} cxd4 {[%emt 0:03:11]} 17. Rxd4 {[%emt 0:01:10]} e5 {[%emt 0:06:17]} 18. Rxc4 {[%emt 0:00:04]} Bd6 {[%emt 0:00:32]} 19. Kg2 {[%emt 0:00:48]} Qe6 {[%emt 0:02:10]} 20. h3 {[%emt 0:00:23]} Rfb8 {[%emt 0:03:43]} 21. Be3 {[%emt 0:00:48]} Rxb2 {[%emt 0:03:11]} 22. Qd3 {[%emt 0:00:13]} Rab8 {[%emt 0:01:52]} 23. Rac1 {[%emt 0:00:53]} Bxa3 {[%emt 0:12:30]} 24. Rxc7 {[%emt 0:00:27]} Rxe2 {[%emt 0:00:43]} 25. Qxa3 {[%emt 0:00:15]} Qb3 {[%emt 0:10:50]} ({Black should try} 25... Rb3 $15 26. Rc8+ Kh7) 26. Rc8+ {[%emt 0:00:41]} Kh7 {[%emt 0:00:02]} 27. Qxb3 {[%emt 0:00:35]} Rxb3 {[%emt 0:00:02]} 28. Kf3 {[%emt 0:00:24]} Reb2 {[%emt 0:04:54]} 29. R1c5 {[%emt 0:00:35]} Rb5 {[%emt 0:00:14]} 30. R5c7 {[%emt 0:00:02]} Rb8 {[%emt 0:01:53]} 31. Rxb8 {[%emt 0:00:28]} Rxb8 {[%emt 0:00:01]} 32. Rxf7 {[%emt 0:00:58]} Rb4 {[%emt 0:00:46]} 33. Ra7 {[%emt 0:00:06]} Ra4 {[%emt 0:00:06]} 34. Re7 {[%emt 0:00:24]} Rxe4 {[%emt 0:01:00]} 35. Re6 {[%emt 0:00:02]} Ra4 {[%emt 0:00:39]} 36. Rxe5 {[%emt 0:00:04]} Kg6 {[%emt 0:00:08]} 37. Kg2 {[%emt 0:01:01]} Ra2 {[%emt 0:00:27]} 38. Bb6 {[%emt 0:00:41]} Kf7 {[%emt 0:00:26]} 39. Rc5 {[%emt 0:01:08]} Nd7 {[%emt 0:01:13]} 40. Rc7 {[%emt 0:00:00]} Ke6 {[%emt 0:00:03]} 41. Bd4 {[%emt 0:02:07]} g6 {[%emt 0:01:26]} 42. Rc6+ {[%emt 0:04:14]} Kf7 {[%emt 0:03:05]} 43. Rc7 {[%emt 0:02:33]} Ke6 $14 {[%emt 0:00:21]} 44. Rc6+ {[%emt 0:00:04]} Kf7 {[%emt 0:00:03]} 45. Rc7 {[%emt 0:01:07]} Ke6 {[%emt 0:00:04]} 46. Rc6+ {[%emt 0:04:10]} Kf7 {[%emt 0:00:14]} 1/2-1/2